bitfinex-derivatives/quotes_ETHF0:USTF0_20210405
["timestamp","ask_amount","ask_price","bid_price","bid_amount"]
[1617659671058,2.90695,2109.7,2109.6,8.974]
[1617659673163,2.90695,2109.7,2109.6,8.0269]
[1617659677467,2.43465,2109.7,2109.6,8.0269]
[1617659680170,2.43465,2109.7,2109.6,5.75]
[1617659680772,0.65944364,2109.8,2109.6,5.75]
[1617659681571,3.56639364,2109.8,2109.6,5.75]
[1617659684475,4.00731017,2109.8,2109.6,5.75]
[1617659688480,1.10017833,2109.7,2109.6,5.75]
[1617659689783,4.00716664,2109.8,2109.6,5.75]
[1617659689984,4.00716664,2109.8,2109.6,8.5981]
[1617659692384,2.90695,2109.8,2109.6,8.5981]
[1617659692785,0.88033236,2109.7,2109.6,8.5981]
[1617659695290,4.00741608,2109.8,2109.6,8.5981]
[1617659696292,1.10046608,2109.8,2109.6,8.5981]
[1617659696994,0.88044603,2109.7,2109.6,8.5981]
[1617659699393,0.88044603,2109.7,2109.6,9.5537]
[1617659703101,0.88052561,2109.8,2109.6,9.5537]
[1617659703300,0.88052561,2109.8,2109.6,8.5981]
[1617659703500,0.2700065,2109.7,2109.6,8.5981]
[1617659703901,0.88052561,2109.8,2109.6,8.5981]
[1617659704100,0.88043142,2109.7,2109.6,8.5981]
[1617659704401,0.88043142,2109.7,2109.6,9.5417]
[1617659705003,0.88051252,2109.8,2109.6,9.5417]
[1617659705702,0.88051252,2109.8,2109.7,2.0]
[1617659705903,2.90695,2110.1,2109.7,2.0]
[1617659705904,4.00795187,2110.1,2109.7,7.89]
[1617659706602,1.10076753,2110.2,2109.7,7.89]
[1617659707502,0.66052319,2109.8,2109.7,7.89]
[1617659707902,4.8360451,2110.4,2109.7,7.89]
[1617659707903,0.6606538,2109.9,2109.7,7.89]
[1617659709104,1.10108967,2110.3,2109.7,7.89]
[1617659709604,1.10117065,2110.4,2109.7,7.89]
[1617659709805,1.10117065,2110.4,2110.3,2.90695]
[1617659710004,1.92980156,2110.6,2110.3,5.38675]
[1617659710206,1.92980156,2110.6,2110.3,11.10675]
[1617659710404,1.10142781,2110.4,2110.3,11.10675]
[1617659710805,1.10147711,2110.5,2110.3,11.10675]
[1617659711004,1.10147711,2110.5,2110.3,12.04185]
[1617659713514,1.10005568,2110.8,2110.3,12.04185]
[1617659714014,1.10005568,2110.8,2110.7,2.90695]
[1617659714214,1.10005568,2110.8,2110.7,8.64695]
[1617659715315,0.81035568,2110.8,2110.7,8.64695]
[1617659716120,1.92802903,2111.1,2110.7,8.64695]
[1617659716516,1.92802903,2111.1,2110.8,66.8526]
[1617659716716,1.92802903,2111.1,2110.9,5.73]
[1617659717917,2.75593759,2111.1,2111.0,2.90695]
[1617659718317,2.75593759,2111.1,2111.0,8.86695]
[1617659720719,5.7751935,2111.2,2111.0,8.86695]
[1617659722820,5.7751935,2111.2,2111.0,5.96]
[1617659724021,5.7751935,2111.2,2111.1,2.90695]
[1617659724223,3.01918732,2111.2,2111.1,2.90695]
[1617659724422,3.01918732,2111.2,2111.1,8.67695]
[1617659724621,4.95005385,2111.2,2111.1,8.67695]
[1617659725422,0.68384447,2111.2,2111.1,8.67695]
[1617659725922,1.62524447,2111.2,2111.1,8.67695]
[1617659726123,0.68384447,2111.2,2111.1,8.67695]
[1617659727222,1.61974447,2111.2,2111.1,8.67695]
[1617659727423,0.68384447,2111.2,2111.1,8.67695]
[1617659727627,60.13,2111.3,2111.1,8.67695]
[1617659729325,59.9228,2111.3,2111.1,8.67695]
[1617659736731,59.64772235,2111.3,2111.1,8.67695]
[1617659738033,59.64772235,2111.3,2111.1,11.36615]
[1617659740836,59.56402235,2111.3,2111.1,11.36615]
[1617659744343,7.48404098,2111.5,2111.1,11.36615]
[1617659744542,7.48404098,2111.5,2111.1,8.67695]
[1617659745144,7.20604098,2111.5,2111.1,8.67695]
[1617659745946,6.72864098,2111.5,2111.1,8.67695]
[1617659746145,6.26064098,2111.5,2111.4,2.90695]
[1617659746548,6.26064098,2111.5,2111.4,8.82695]
[1617659748949,7.19964098,2111.5,2111.4,8.82695]
[1617659749152,6.26064098,2111.5,2111.4,8.82695]
[1617659750750,5.78744098,2111.5,2111.4,8.82695]
[1617659754152,5.35754098,2111.5,2111.4,8.82695]
[1617659754552,4.36464098,2111.5,2111.4,8.82695]
[1617659754751,3.68854098,2111.5,2111.4,8.82695]
[1617659754952,3.21834098,2111.5,2111.4,8.82695]
[1617659755153,3.11844098,2111.5,2111.4,8.82695]
[1617659765868,1.66684098,2111.5,2111.4,8.82695]
[1617659766567,0.96364098,2111.5,2111.4,8.82695]
[1617659766967,52.33964098,2111.6,2111.4,8.82695]
[1617659767570,50.68524098,2111.6,2111.4,8.82695]
[1617659767775,39.45354098,2111.6,2111.4,8.82695]
[1617659767969,39.36304098,2111.6,2111.4,8.82695]
[1617659768170,38.36304098,2111.6,2111.4,8.82695]
[1617659768371,38.36304098,2111.6,2111.5,2.0]
[1617659768576,38.36304098,2111.6,2111.5,4.6189]
[1617659768771,38.36304098,2111.6,2111.5,10.5689]
[1617659769271,37.40894098,2111.6,2111.5,10.5689]
[1617659769772,0.65953214,2112.5,2111.5,10.5689]
[1617659769972,0.65955855,2112.6,2111.5,10.5689]
[1617659770373,5.855e-05,2112.6,2112.5,2.90695]
[1617659770572,0.87937619,2112.8,2112.5,5.11285]
[1617659770771,0.87937619,2112.8,2112.5,10.88285]
[1617659770971,0.87937619,2112.8,2112.6,69.3804]
[1617659771472,0.87937619,2112.8,2112.7,5.9]
[1617659772371,0.87937619,2112.8,2112.7,6.8519]
[1617659772571,1.09922024,2113.0,2112.7,6.8519]
[1617659773073,0.87938122,2112.8,2112.7,6.8519]
[1617659773572,7.69588942,2113.2,2112.7,5.9]
[1617659773573,1.09919315,2112.9,2112.7,5.9]
[1617659773974,1.09922607,2113.0,2112.7,5.9]
[1617659774373,1.09922607,2113.0,2112.9,2.90695]
[1617659774674,1.09922607,2113.0,2112.9,8.59695]
[1617659775375,5.01782949,2113.2,2112.9,8.59695]
[1617659775774,1.09929829,2113.0,2112.9,8.59695]
[1617659776877,1.09958282,2113.1,2112.9,8.59695]
[1617659777778,0.22892055,2113.0,2112.9,8.59695]
[1617659778181,0.71718282,2113.1,2112.9,8.59695]
[1617659778779,1.93020213,2113.1,2112.9,8.59695]
[1617659779179,3.08803168,2113.2,2112.9,8.59695]
[1617659779180,0.8796997,2113.0,2112.9,8.59695]
[1617659779380,1.10513998,2113.0,2112.9,8.59695]
[1617659779780,0.8796997,2113.0,2112.9,8.59695]
[1617659782583,0.8534464,2113.2,2112.9,8.59695]
[1617659782784,0.21624607,2113.0,2112.9,8.59695]
[1617659783184,0.21624465,2113.1,2112.9,8.59695]
[1617659783583,0.84421309,2113.2,2112.9,8.59695]
[1617659783884,0.21621274,2113.0,2112.9,8.59695]
[1617659784284,0.8442188,2113.2,2112.9,8.59695]
[1617659785584,0.62800489,2113.2,2112.9,8.59695]
[1617659786086,0.84415481,2113.2,2112.9,8.59695]
[1617659786889,72.1971,2113.3,2112.9,8.59695]
[1617659787489,0.20846658,2113.2,2112.9,8.59695]
[1617659788494,0.20686199,2113.1,2112.9,8.59695]
[1617659788891,0.20644487,2113.0,2112.9,8.59695]
[1617659789291,0.2064454,2113.2,2112.9,8.59695]
[1617659789691,1.93081273,2113.1,2112.9,8.59695]
[1617659790091,0.2064454,2113.2,2112.9,8.59695]
[1617659797805,1.30753562,2113.2,2112.9,8.59695]
[1617659800506,2.90695,2113.1,2112.9,8.59695]
[1617659801007,0.19439736,2113.0,2112.9,8.59695]
[1617659805712,1.10176213,2113.1,2112.9,8.59695]
[1617659806517,4.00871213,2113.1,2112.9,8.59695]
[1617659806913,0.19440646,2113.0,2112.9,8.59695]
[1617659807112,2.46780646,2113.0,2112.9,8.59695]
[1617659807313,3.5692681,2113.0,2112.9,8.59695]
[1617659807713,3.5692681,2113.0,2112.9,5.69]
[1617659808114,3.5692681,2113.0,2111.4,5.78]
[1617659808316,4.39727853,2113.0,2111.4,5.78]
[1617659808515,4.39727853,2113.0,2112.9,5.8]
[1617659808717,2.2734,2113.0,2112.1,2.90695]
[1617659809118,5.02762283,2113.0,2112.9,5.8]
[1617659809316,5.02762283,2113.0,2112.2,5.73]
[1617659809516,5.02762283,2113.0,2112.1,2.90695]
[1617659809716,65.404,2112.9,2112.1,2.90695]
[1617659809916,65.404,2112.9,2112.2,5.7]
[1617659810118,1.10050946,2112.6,2112.2,5.7]
[1617659810719,2.90695,2112.3,2112.2,5.7]
[1617659810922,5.3476569,2112.3,2112.2,5.7]
[1617659812124,37.3476569,2112.3,2112.2,5.7]
[1617659812322,68.8173,2112.2,2111.4,5.96]
[1617659812523,100.8173,2112.2,2107.3,5.00508115]
[1617659812723,2.90695,2111.5,2110.9,2.90695]
[1617659812921,5.44975,2111.5,2111.2,5.72]
[1617659813323,61.0181,2111.2,2111.0,3.18]
[1617659813523,91.0181,2111.2,2108.0,13.6406]
[1617659813724,30.0,2111.2,2111.0,5.71]
[1617659814124,30.0,2111.2,2108.7,2.0]
[1617659814125,0.87847161,2111.1,2109.1,0.14]
[1617659814526,0.8784441,2111.0,2110.4,5.93]
[1617659814724,2.90695,2110.5,2110.3,2.90695]
[1617659814925,5.26695,2110.5,2110.3,2.90695]
[1617659815124,5.26695,2110.5,2110.4,0.42]
[1617659819925,6.14556802,2110.5,2110.4,0.42]
[1617659821425,5.26695,2110.5,2110.4,0.42]
[1617659822326,67.0989,2110.4,2108.9,5.93]
[1617659822527,67.0989,2110.4,2108.8,69.5472]
[1617659822726,67.0989,2110.4,2109.8,2.90695]
[1617659822929,0.19458053,2110.3,2109.8,2.90695]
[1617659823326,0.19458053,2110.3,2109.9,5.87]
[1617659823727,67.97741858,2110.4,2109.9,5.87]
[1617659824227,0.19457926,2110.3,2109.9,5.87]
[1617659824732,2.90695,2110.0,2109.9,5.87]
[1617659824930,5.23885,2110.0,2109.9,5.87]
[1617659828136,2.90695,2110.0,2109.9,5.87]
[1617659829037,97.97742964,2110.4,2109.9,5.87]
[1617659829241,30.87852964,2110.4,2109.9,5.87]
[1617659829438,0.87852964,2110.4,2109.9,5.87]
[1617659829840,73.8058,2110.1,2109.9,5.87]
[1617659830139,72.8058,2110.1,2109.9,5.87]
[1617659831238,71.8058,2110.1,2109.9,5.87]
[1617659840046,2.90695,2110.2,2109.9,5.87]
[1617659840850,2.90695,2110.2,2110.1,2.90695]
[1617659841450,32.90695,2110.2,2110.1,5.69]
[1617659841851,32.90695,2110.2,2108.1,2.571]
[1617659842050,66.8455,2109.4,2108.6,5.7]
[1617659842251,2.7124,2109.4,2108.5,5.7]
[1617659842451,62.6853,2108.6,2108.2,4.03]
[1617659842651,62.6853,2108.6,2107.9,5.15]
[1617659842852,2.90695,2109.2,2108.5,2.90695]
[1617659843051,62.6779,2108.7,2108.5,2.90695]
[1617659843450,62.6779,2108.7,2108.6,5.85]
[1617659844151,61.6779,2108.7,2108.6,5.85]
[1617659847856,2.90695,2109.2,2108.6,5.85]
[1617659848055,59.0427,2108.9,2108.6,5.85]
[1617659849057,59.0427,2108.9,2108.8,2.90695]
[1617659849556,59.0427,2108.9,2108.8,8.78695]
[1617659853259,2.90695,2109.2,2108.8,8.78695]
[1617659855062,2.90695,2109.2,2109.1,2.90695]
[1617659855464,2.90695,2109.2,2109.1,8.86695]
[1617659860367,59.7582,2109.5,2109.1,8.86695]
[1617659860767,1.42377129,2110.2,2109.1,8.86695]
[1617659860968,58.8956,2109.8,2109.1,8.86695]
[1617659861167,58.8956,2109.8,2109.6,2.90695]
[1617659861569,58.8956,2109.8,2109.7,5.77]
[1617659862167,58.8956,2109.8,2109.7,6.7154]
[1617659862368,58.8956,2109.8,2109.7,5.77]
[1617659862569,30.0,2110.6,2109.7,5.77]
[1617659863171,2.0,2111.4,2110.1,2.90695]
[1617659863376,2.0,2111.4,2110.1,4.65955]
[1617659863573,30.0,2111.3,2110.2,5.71]
[1617659864185,56.8623,2111.0,2110.2,5.71]
[1617659864777,56.8623,2111.0,2110.2,6.6486]
[1617659864983,56.8623,2111.0,2110.2,5.71]
[1617659865179,56.8623,2111.0,2110.5,2.90695]
[1617659865579,56.8623,2111.0,2110.6,4.31648544]
[1617659865780,56.8623,2111.0,2110.6,6.81918544]
[1617659866179,30.0,2111.6,2110.6,6.81918544]
[1617659866579,30.0,2111.5,2110.6,6.81918544]
[1617659867180,30.0,2111.5,2111.1,2.90695]
[1617659867581,30.0,2111.5,2111.2,5.78]
[1617659868384,2.65575419,2112.0,2111.2,5.78]
[1617659868583,30.0,2111.9,2111.2,5.78]
[1617659868783,89.7536,2111.9,2111.2,5.78]
[1617659868983,30.0,2111.9,2111.2,5.78]
[1617659869183,2.90695,2111.3,2111.2,5.78]
[1617659877695,3.84605,2111.3,2111.2,5.78]
[1617659877895,2.90695,2111.3,2111.2,5.78]
[1617659894210,3.79300088,2111.3,2111.2,5.78]
[1617659898613,2.90695,2111.3,2111.2,5.78]
[1617659898814,2.90695,2111.3,2110.1,5.78]
[1617659899014,2.90695,2111.3,2110.1,6.7365]
[1617659899216,1.10866406,2111.4,2111.2,5.92]
[1617659899414,1.10866406,2111.4,2110.5,2.90695]
[1617659899815,30.0,2111.1,2110.6,2.35]
[1617659900015,0.66474771,2110.7,2109.4,2.0]
[1617659900214,0.66474771,2110.7,2109.5,5.82]
[1617659900215,0.88598462,2110.7,2109.5,5.82]
[1617659900415,0.88598462,2110.7,2110.6,3.66]
[1617659900614,1.1073435,2110.8,2108.6,2.0]
[1617659900816,1.1073435,2110.8,2109.6,5.13]
[1617659901015,0.66431872,2110.2,2109.8,5.8]
[1617659901215,3.21601872,2110.2,2108.7,0.09]
[1617659901414,61.4676,2109.8,2109.7,5.91]
[1617659901817,61.4676,2109.8,2109.4,3.7]
[1617659902016,61.4676,2109.8,2109.7,5.78]
[1617659902414,61.4676,2109.8,2109.5,5.68]
[1617659902614,61.4676,2109.8,2109.7,5.82]
[1617659903014,61.4676,2109.8,2109.6,5.81]
[1617659903216,62.13208972,2109.8,2109.6,5.81]
[1617659903414,62.13208972,2109.8,2109.7,5.71]
[1617659903615,62.13208972,2109.8,2109.3,2.90695]
[1617659903815,62.13208972,2109.8,2109.6,5.77]
[1617659904016,62.13208972,2109.8,2109.7,5.73]
[1617659904215,62.13208972,2109.8,2109.4,5.96]
[1617659904417,62.13208972,2109.8,2109.3,2.90695]
[1617659904615,62.13208972,2109.8,2109.7,5.82]
[1617659904815,62.13208972,2109.8,2109.4,5.96]
[1617659905016,62.13208972,2109.8,2109.3,2.90695]
[1617659905017,61.4676,2109.8,2109.3,2.90695]
[1617659905217,61.4676,2109.8,2109.7,5.91]
[1617659905415,61.4676,2109.8,2109.4,5.69]
[1617659906017,0.3096406,2109.7,2109.4,5.69]
[1617659906418,62.13225257,2109.8,2109.4,5.69]
[1617659907318,2.90695,2109.5,2109.4,5.69]
[1617659929039,32.90695,2109.5,2109.4,5.69]
[1617659930043,33.57013072,2109.5,2109.4,5.69]
[1617659930743,34.50413072,2109.5,2109.4,5.69]
[1617659930947,33.57013072,2109.5,2109.4,5.69]
[1617659931944,32.90695,2109.5,2109.4,5.69]
[1617659932345,33.57007052,2109.5,2109.4,5.69]
[1617659934345,33.57007052,2109.5,2108.1,5.82]
[1617659934548,74.2411,2109.4,2108.1,7.82]
[1617659934745,104.2411,2109.4,2108.1,2.0]
[1617659934945,104.2411,2109.4,2108.2,5.74]
[1617659935746,104.90388169,2109.4,2108.9,2.90695]
[1617659936146,104.90388169,2109.4,2109.0,5.89]
[1617659936948,104.2411,2109.4,2109.0,5.89]
[1617659937652,2.90695,2109.1,2109.0,5.89]
[1617659937850,5.72835,2109.1,2109.0,5.89]
[1617659938252,35.72835,2109.1,2109.0,5.89]
[1617659939251,35.72835,2109.1,2107.3,53.6853]
[1617659939252,36.39021111,2109.1,2107.4,5.76]
[1617659939452,60.8976,2107.9,2107.4,5.76]
[1617659939653,63.7407,2107.9,2107.8,2.90695]
[1617659940053,63.7407,2107.9,2107.8,8.60695]
[1617659946060,2.8431,2107.9,2107.8,8.60695]
[1617659946259,2.0316,2107.9,2107.8,8.60695]
[1617659951469,2.90695,2108.0,2107.8,8.60695]
[1617659952969,2.90695,2108.0,2107.8,9.56775]
[1617659953171,2.90695,2108.0,2107.8,8.60695]
[1617659958276,5.54115,2108.0,2107.8,9.54645]
[1617659958678,5.54115,2108.0,2107.8,8.60695]
[1617659961480,2.90695,2108.0,2107.8,8.60695]
[1617659964183,58.7274,2107.9,2107.8,8.60695]
[1617659964685,58.7274,2107.9,2107.8,9.55015]
[1617659965185,2.90695,2108.0,2107.8,8.60695]
[1617659968489,66.5159,2107.9,2107.8,8.60695]
[1617659968890,2.90695,2108.0,2107.8,8.60695]
[1617659975499,2.90695,2108.0,2107.9,60.6279]
[1617659975800,2.90695,2108.0,2107.9,66.5279]
[1617659976502,2.90695,2108.0,2107.9,5.9]
[1617659979005,2.90695,2108.0,2107.9,62.9436]
[1617659980908,2.90695,2108.0,2107.9,5.9]
[1617659983008,0.66283131,2108.6,2107.9,5.9]
[1617659983208,0.66283131,2108.6,2107.9,7.9]
[1617659983408,0.66283131,2108.6,2108.2,61.2389]
[1617659983612,0.66340745,2108.8,2108.3,5.78]
[1617659984010,2.90695,2108.8,2108.7,2.90695]
[1617659984210,1.90695,2108.8,2108.7,5.21805]
[1617659984407,1.90695,2108.8,2108.7,10.96805]
[1617659985211,0.66394301,2109.2,2108.7,10.96805]
[1617659985610,0.66394301,2109.2,2108.8,2.0]
[1617659985811,0.66421992,2109.4,2108.8,2.0]
[1617659986010,0.66421992,2109.4,2109.3,2.90695]
[1617659986217,0.66421992,2109.4,2109.3,4.69185]
[1617659986411,0.88562656,2109.6,2109.3,4.69185]
[1617659986412,0.66435749,2109.5,2109.3,4.69185]
[1617659986611,0.66435749,2109.5,2109.3,10.39185]
[1617659988015,3.57130749,2109.5,2109.3,10.39185]
[1617659990416,2.90695,2109.5,2109.3,10.39185]
[1617659993219,3.57247909,2109.5,2109.3,10.39185]
[1617659993517,2.90695,2109.5,2109.3,10.39185]
[1617659995018,0.66556454,2109.6,2109.3,10.39185]
[1617659995219,0.66556454,2109.6,2109.3,12.39185]
[1617659995618,0.6657255,2109.7,2109.3,12.39185]
[1617659996018,0.6657255,2109.7,2109.6,2.90695]
[1617659996222,0.6659085,2109.8,2109.6,2.90695]
[1617659996418,0.6659085,2109.8,2109.6,8.80695]
[1617659996920,0.66602302,2109.9,2109.6,8.80695]
[1617659997720,0.88796845,2110.1,2109.7,67.1999]
[1617659998120,0.88848527,2110.3,2110.0,2.90695]
[1617659998319,0.88848527,2110.3,2110.0,5.30815]
[1617659998519,1.21090065,2110.5,2110.3,64.2016]
[1617659998920,0.32207875,2110.5,2110.4,5.8]
[1617659999120,0.88894195,2110.6,2110.4,5.8]
[1617659999521,0.88911382,2110.7,2110.4,5.8]
[1617659999922,0.88749581,2111.3,2110.4,5.8]
[1617660000119,0.88749581,2111.3,2111.2,2.90695]
[1617660000320,0.88749581,2111.3,2111.2,4.66455]
[1617660000520,0.88749581,2111.3,2111.2,10.60455]
[1617660000726,1.42303514,2111.3,2111.2,10.60455]
[1617660001221,1.74461204,2111.3,2111.2,10.60455]
[1617660001921,1.42303514,2111.3,2111.2,10.60455]
[1617660002321,1.88508442,2111.8,2111.2,10.60455]
[1617660002322,0.88809684,2111.8,2111.2,10.60455]
[1617660002722,0.88806255,2111.9,2111.2,10.60455]
[1617660003122,0.88805852,2112.0,2111.2,10.60455]
[1617660003522,1.66355329,2112.1,2111.2,10.60455]
[1617660003723,1.66355329,2112.1,2111.2,12.60455]
[1617660003923,0.88785579,2112.3,2111.2,12.60455]
[1617660004123,0.88785579,2112.3,2112.2,2.90695]
[1617660004322,1.66181856,2112.9,2112.2,7.68335]
[1617660004522,1.66181856,2112.9,2112.5,69.3777]
[1617660004723,15.0,2113.0,2112.6,5.81]
[1617660004923,15.0,2113.0,2112.6,7.81]
[1617660005323,14.5754,2113.0,2112.6,7.81]
[1617660005723,12.5961,2113.0,2112.6,7.81]
[1617660005923,12.5961,2113.0,2112.6,8.7591]
[1617660006122,12.5961,2113.0,2112.9,2.90695]
[1617660006323,10.0005,2113.0,2112.9,4.66335]
[1617660006524,4.9574,2113.0,2112.9,6.66335]
[1617660006725,0.2089,2113.0,2112.9,12.36335]
[1617660007326,1.42072238,2114.8,2112.9,12.36335]
[1617660008226,1.42072238,2114.8,2114.7,2.90695]
[1617660008427,10.4553,2115.9,2114.7,4.68505]
[1617660008627,10.4553,2115.9,2114.7,10.48505]
[1617660009830,10.4553,2115.9,2114.9,77.1889]
[1617660010232,10.4553,2115.9,2115.5,2.90695]
[1617660010630,10.4553,2115.9,2115.6,5.84]
[1617660012031,10.4553,2115.9,2115.6,5.8276]
[1617660014235,2.90695,2115.7,2115.6,8.73455]
[1617660015837,10.4553,2115.9,2115.6,8.73455]
[1617660016240,2.90695,2115.8,2115.6,8.73455]
[1617660016840,2.90695,2115.8,2115.6,8.71455]
[1617660017040,56.1459,2115.7,2115.6,8.71455]
[1617660017642,56.1459,2115.7,2115.6,5.8076]
[1617660018443,56.1459,2115.7,2114.3,53.3157]
[1617660018842,56.1459,2115.7,2115.6,5.79]
[1617660019043,56.1459,2115.7,2114.4,5.81]
[1617660019443,56.1459,2115.7,2115.6,5.84]
[1617660019642,56.1459,2115.7,2115.3,5.81]
[1617660020042,56.1459,2115.7,2115.6,5.88]
[1617660020442,56.1459,2115.7,2114.7,2.90695]
[1617660020644,86.1459,2115.7,2115.6,5.78]
[1617660020843,86.1459,2115.7,2115.0,5.93]
[1617660021041,86.1459,2115.7,2114.8,3.13]
[1617660021244,30.0,2115.7,2115.6,5.86]
[1617660021443,30.0,2115.7,2113.2,76.1896]
[1617660021643,2.0,2115.6,2114.8,5.79]
[1617660021842,30.0,2115.5,2113.2,76.1896]
[1617660022044,30.0,2115.5,2113.3,0.14]
[1617660022245,30.0,2115.5,2114.9,4.51]
[1617660022445,30.0,2115.5,2114.5,5.84]
[1617660022644,30.0,2115.5,2115.0,2.64]
[1617660023044,30.0,2115.5,2114.3,5.89]
[1617660023247,30.0,2115.5,2115.1,0.05]
[1617660023444,32.0,2115.5,2114.4,5.67]
[1617660023843,32.0,2115.5,2113.6,5.95]
[1617660024044,32.0,2115.5,2114.5,5.73]
[1617660024244,2.90695,2114.6,2114.5,5.73]
[1617660024446,32.90695,2114.6,2113.7,5.77]
[1617660024644,32.90695,2114.6,2113.1,2.90695]
[1617660024845,32.90695,2114.6,2114.5,3.65]
[1617660024846,35.52365,2114.6,2114.5,3.65]
[1617660025044,35.52365,2114.6,2113.8,5.92]
[1617660025244,35.52365,2114.6,2114.5,5.69]
[1617660025445,36.46505,2114.6,2114.5,5.69]
[1617660025645,130.24915,2114.6,2113.9,5.23]
[1617660025848,36.46505,2114.6,2114.5,5.82]
[1617660026044,36.46505,2114.6,2114.5,5.2737]
[1617660026248,38.46505,2114.6,2114.0,5.35]
[1617660026449,1.42089858,2114.5,2112.4,2.90695]
[1617660026649,67.4585,2114.0,2113.5,3.31]
[1617660026850,30.0,2113.9,2113.5,3.31]
[1617660027049,30.0,2113.9,2111.4,0.9382]
[1617660027250,30.0,2113.9,2113.6,5.69]
[1617660027652,30.0,2113.9,2111.5,0.18]
[1617660027851,1.862,2114.0,2112.3,5.89]
[1617660028052,77.2767,2113.6,2112.1,5.86]
[1617660028252,77.2767,2113.6,2112.5,2.90695]
[1617660028653,77.2767,2113.6,2112.6,3.12]
[1617660030355,77.2767,2113.6,2112.9,2.90695]
[1617660030756,77.2767,2113.6,2113.0,5.73]
[1617660031356,1.862,2114.0,2113.0,5.73]
[1617660031556,76.4511,2114.7,2113.1,57.5658]
[1617660031957,76.4511,2114.7,2113.2,5.82]
[1617660032158,76.4511,2114.7,2113.2,8.008]
[1617660032358,76.4511,2114.7,2114.0,2.90695]
[1617660032760,76.4511,2114.7,2114.1,5.89]
[1617660033161,76.4511,2114.7,2114.1,4.46866191]
[1617660034363,2.90695,2114.5,2114.3,2.90695]
[1617660034762,2.90695,2114.5,2114.4,5.74]
[1617660039664,2.90695,2114.5,2114.4,6.6956]
[1617660040965,2.90695,2114.5,2114.4,5.74]
[1617660041964,60.28455,2114.5,2114.4,5.74]
[1617660044968,92.53295,2114.5,2114.4,5.74]
[1617660045169,92.53295,2114.5,2113.3,5.85]
[1617660045369,71.7505,2114.0,2112.6,71.4064]
[1617660045567,73.5799,2114.0,2112.6,71.4064]
[1617660045769,73.5799,2114.0,2113.4,5.82]
[1617660045969,73.5799,2114.0,2112.7,5.88]
[1617660046372,73.5799,2114.0,2112.6,71.4064]
[1617660046570,73.5799,2114.0,2113.5,2.90695]
[1617660046771,71.7505,2114.0,2113.5,3.85625]
[1617660046971,71.7505,2114.0,2113.6,5.71]
[1617660048575,71.7505,2114.0,2113.8,2.90695]
[1617660048877,71.7505,2114.0,2113.9,5.93]
[1617660050576,74.65745,2114.0,2113.9,5.93]
[1617660052180,2.90695,2114.0,2113.9,5.93]
[1617660059794,2.90695,2114.0,2113.9,6.884]
[1617660059994,32.90695,2114.0,2113.9,5.93]
[1617660060393,32.90695,2114.0,2113.1,5.85]
[1617660060595,30.0,2114.0,2113.5,2.90695]
[1617660060797,30.0,2114.0,2113.9,5.95]
[1617660060995,30.0,2114.0,2113.1,5.9]
[1617660061395,30.0,2114.0,2113.9,5.7]
[1617660061595,30.0,2114.0,2113.1,5.95]
[1617660061995,30.0,2114.0,2113.9,5.71]
[1617660062194,30.0,2114.0,2113.1,5.8]
[1617660062594,30.0,2114.0,2113.9,5.89]
[1617660062795,30.0,2114.0,2113.1,5.85]
[1617660062995,30.0,2114.1,2113.1,5.85]
[1617660063195,30.0,2114.1,2113.9,5.15]
[1617660063396,2.7633,2114.2,2113.2,5.92]
[1617660063595,30.0,2114.4,2113.2,5.92]
[1617660063795,30.0,2114.4,2114.0,5.8]
[1617660063995,30.0,2114.4,2113.3,5.82]
[1617660064395,30.0,2114.4,2114.1,5.81]
[1617660064596,2.90695,2114.2,2113.4,5.93]
[1617660064995,2.90695,2114.2,2113.2,2.90695]
[1617660065196,2.90695,2114.2,2113.3,2.19]
[1617660065397,2.90695,2114.2,2113.5,5.83]
[1617660065597,2.90695,2114.2,2113.2,2.90695]
[1617660065797,2.90695,2114.2,2113.4,5.78]
[1617660065997,2.90695,2114.2,2113.6,5.96]
[1617660066199,66.6538,2113.9,2113.6,0.9413]
[1617660066600,66.6538,2113.9,2113.7,5.73]
[1617660066804,2.90695,2113.8,2113.7,5.73]
[1617660066999,2.90695,2113.8,2113.6,5.84]
[1617660067203,2.90695,2113.8,2113.7,0.31]
[1617660067504,2.90695,2113.8,2113.4,3.87]
[1617660067904,2.90695,2113.8,2113.6,5.73]
[1617660068104,2.90695,2113.8,2113.5,5.8]
[1617660068505,2.90695,2113.8,2113.7,5.76]
[1617660068706,2.90695,2113.8,2113.6,5.82]
[1617660069107,2.90695,2113.8,2113.7,5.85]
[1617660069308,2.90695,2113.8,2113.3,4.8]
[1617660069506,2.90695,2113.8,2113.6,3.98]
[1617660069706,3.86255,2113.8,2113.7,5.79]
[1617660070106,3.86255,2113.8,2113.6,5.75]
[1617660070308,2.90695,2113.8,2113.7,5.74]
[1617660070507,2.90695,2113.8,2113.5,66.7708]
[1617660070708,2.90695,2113.8,2113.6,5.86]
[1617660070907,2.90695,2113.8,2113.5,66.7708]
[1617660070908,2.90695,2113.8,2113.7,5.74]
[1617660071308,2.90695,2113.8,2113.6,5.93]
[1617660071508,2.90695,2113.8,2113.7,5.82]
[1617660071912,2.90695,2113.8,2113.6,5.69]
[1617660072108,2.90695,2113.8,2113.7,5.94]